bitfinex-derivatives/quotes_ETHF0:USTF0_20251001
["timestamp","ask_amount","ask_price","bid_price","bid_amount"]
[1759289485466,0.86328,4145.6,4145.5,0.21559896]
[1759289485771,1.19438,4145.6,4145.5,0.21559896]
[1759289486067,1.19438,4145.6,4145.5,0.53689896]
[1759289486466,0.7603,4145.6,4145.5,1.19488896]
[1759289486663,1.19438,4145.6,4145.5,1.19488896]
[1759289486858,1.19438,4145.6,4145.5,0.76079896]
[1759289487064,1.19438,4145.6,4145.5,0.00239896]
[1759289488371,1.44038,4145.6,4145.5,0.00239896]
[1759289491874,0.7603,4145.6,4145.5,2.06386444]
[1759289492064,0.2153,4145.6,4145.5,1.32198896]
[1759289492268,0.43407,4145.7,4145.6,0.87118]
[1759289492569,0.2153,4145.8,4145.7,1.19247]
[1759289492770,41.046,4146.0,4145.9,0.7584]
[1759289492973,1.1373,4146.0,4145.5,0.00239896]
[1759289493273,0.98048,4145.6,4145.5,1.32198896]
[1759289493467,0.98048,4145.6,4145.5,2.19096444]
[1759289494168,0.2153,4145.6,4145.5,2.19096444]
[1759289494575,0.43407,4145.7,4145.6,1.19248]
[1759289494872,0.98046,4145.8,4145.7,0.7584]
[1759289495070,0.2153,4145.8,4145.7,2.06144548]
[1759289495462,0.64936,4145.8,4145.7,1.62737548]
[1759289495667,0.64936,4145.8,4145.7,2.06144548]
[1759289495978,0.2153,4145.8,4145.7,2.06144548]
[1759289496178,0.64936,4145.8,4145.7,2.06144548]
[1759289496974,1.19436,4145.8,4145.7,1.62737548]
[1759289497675,1.19436,4145.8,4145.7,0.86897548]
[1759289498778,1.19438,4145.6,4145.5,0.00239896]
[1759289498980,1.44038,4145.6,4145.5,0.00239896]
[1759289503184,1.44038,4145.6,4145.5,0.53689896]
[1759289503676,1.44038,4145.6,4145.5,0.76079896]
[1759289503980,1.44038,4145.6,4145.5,1.19488896]
[1759289505079,1.44038,4145.6,4145.5,0.76079896]
[1759289505783,1.44038,4145.6,4145.5,1.19488896]
[1759289506286,1.44038,4145.6,4145.5,0.00239896]
[1759289509373,1.44038,4145.6,4145.5,1.62977444]
[1759289511087,1.44038,4145.6,4145.5,0.00239896]
[1759289511278,1.44038,4145.6,4145.5,0.76079896]
[1759289513986,1.44038,4145.6,4145.5,1.19488896]
[1759289514182,1.0063,4145.6,4145.5,2.19626444]
[1759289514391,0.246,4145.6,4145.5,1.32728896]
[1759289514684,41.1358,4146.2,4146.0,0.1324]
[1759289514885,0.246,4146.2,4146.1,2.08050548]
[1759289515485,0.68002,4146.2,4146.1,1.64647548]
[1759289515681,1.46732,4146.2,4146.1,1.64647548]
[1759289515877,1.46732,4146.2,4146.1,2.08050548]
[1759289516489,1.22132,4146.2,4146.1,2.08050548]
[1759289518189,0.7873,4146.2,4146.1,2.08050548]
[1759289518686,1.22132,4146.2,4146.1,2.08050548]
[1759289519983,1.22132,4146.2,4146.1,1.64647548]
[1759289520579,1.08505,4146.2,4145.6,0.4436]
[1759289520785,1.08505,4146.2,4145.6,0.87768]
[1759289520786,1.22137,4145.7,4145.6,0.87768]
[1759289521282,1.22137,4145.7,4145.6,1.21158]
[1759289522190,0.88558,4145.6,4145.5,0.00239896]
[1759289522389,1.22138,4145.6,4145.5,0.56009896]
[1759289522578,1.22138,4145.6,4145.5,0.99418896]
[1759289522785,1.22138,4145.6,4145.5,0.22619896]
[1759289523793,1.22138,4145.6,4145.5,0.00239896]
[1759289528793,2.09035548,4145.6,4145.5,0.00239896]
[1759289528988,1.22138,4145.6,4145.5,0.00239896]
[1759289530897,42.02138,4145.6,4145.5,0.00239896]
[1759289532196,42.26738,4145.6,4145.5,0.00239896]
[1759289534993,42.02138,4145.6,4145.5,0.56009896]
[1759289535197,42.26738,4145.6,4145.5,1.34638896]
[1759289535402,41.2677,4145.6,4145.5,1.34638896]
[1759289535598,0.4677,4145.6,4145.5,1.34638896]
[1759289535899,0.4677,4145.6,4145.5,0.91229896]
[1759289536105,0.7873,4146.2,4146.1,0.7775]
[1759289536401,1.22136,4145.8,4145.7,1.21157]
[1759289536593,1.22136,4145.8,4145.7,0.7775]
[1759289538004,1.22136,4145.8,4145.7,0.2238]
[1759289538302,1.21058,4145.6,4145.5,0.55159896]
[1759289539898,1.21058,4145.6,4145.5,0.00239896]
[1759289540499,1.21058,4145.6,4145.5,0.21529896]
[1759289540696,1.21058,4145.6,4145.5,0.00239896]
[1759289541205,1.21058,4145.6,4145.5,0.55159896]
[1759289541505,0.7765,4145.6,4145.5,0.77609896]
[1759289541705,0.7765,4145.6,4145.5,0.90279896]
[1759289542898,0.7765,4145.6,4145.5,1.33688896]
[1759289543104,1.21058,4145.6,4145.5,1.33688896]
[1759289543407,1.21058,4145.6,4145.5,0.90279896]
[1759289543594,1.21058,4145.6,4145.5,0.77609896]
[1759289543795,1.21058,4145.6,4145.5,0.55159896]
[1759289544197,1.21058,4145.6,4145.5,0.00239896]
[1759289544995,1.21058,4145.6,4145.5,0.21639896]
[1759289545306,1.21058,4145.6,4145.5,0.55749896]
[1759289545507,1.21058,4145.6,4145.5,0.77779896]
[1759289548902,0.7765,4145.6,4145.5,1.21188896]
[1759289549105,0.7765,4145.6,4145.5,1.34278896]
[1759289549106,1.21058,4145.6,4145.5,1.34278896]
[1759289549308,0.2299,4145.6,4145.5,2.3490291]
[1759289549710,0.2224,4145.8,4145.7,1.20947]
[1759289550205,0.75414,4146.0,4145.9,0.3411]
[1759289550404,0.97654,4146.0,4145.9,0.7754]
[1759289550711,0.5425,4146.0,4145.9,1.20945]
[1759289550907,0.2224,4146.2,4146.1,0.43402]
[1759289551102,0.2224,4146.2,4146.1,0.86832]
[1759289551302,0.5425,4146.2,4146.1,0.86832]
[1759289551611,0.5425,4146.2,4146.1,1.20942]
[1759289552205,0.97652,4146.2,4146.1,0.7754]
[1759289552413,1.18582,4146.2,4146.1,0.7754]
[1759289555110,1.18582,4146.2,4146.1,1.20943]
[1759289555512,1.18582,4146.2,4146.1,0.7754]
[1759289558906,0.86576,4145.8,4145.7,0.214]
[1759289559098,1.18586,4145.8,4145.7,0.98917]
[1759289559302,1.18586,4145.8,4145.7,1.20947]
[1759289559699,1.18586,4145.8,4145.7,0.7754]
[1759289561418,1.18588,4145.6,4145.5,0.00239896]
[1759289561711,1.18588,4145.6,4145.5,0.21639896]
[1759289561915,1.18588,4145.6,4145.5,0.55749896]
[1759289563614,1.18588,4145.6,4145.5,0.00239896]
[1759289564806,1.18588,4145.6,4145.5,0.55749896]
[1759289567013,1.18588,4145.6,4145.5,0.00239896]
[1759289568014,41.98588,4145.6,4145.5,0.00239896]
[1759289570512,42.23188,4145.6,4145.5,0.00239896]
[1759289574215,0.1336,4145.0,4144.5,0.1288]
[1759289574424,0.785,4144.7,4144.6,0.7604]
[1759289574817,1.21917,4144.7,4144.6,0.7604]
[1759289575013,1.21917,4144.7,4144.6,0.5318]
[1759289575223,1.21917,4144.7,4144.6,0.76271437]
[1759289575920,1.21917,4144.7,4144.6,0.00231437]
[1759289576520,1.21917,4144.7,4144.6,0.53411437]
[1759289579521,1.21917,4144.7,4144.6,0.76271437]
[1759289579718,0.43417,4144.8,4144.7,0.43417]
[1759289579923,0.68017,4144.8,4144.7,2.20081014]
[1759289580323,0.90657,4144.8,4144.7,2.20081014]
[1759289580626,1.2191,4145.4,4145.3,0.7604]
[1759289580820,1.4651,4145.4,4145.3,0.7604]
[1759289581024,0.9065,4145.4,4145.3,1.19451]
[1759289581325,0.43408,4145.6,4145.5,0.1266]
[1759289581526,1.08505,4146.2,4145.8,0.7604]
[1759289581527,0.66045,4145.9,4145.8,0.7604]
[1759289581713,0.4724,4145.9,4145.8,0.7604]
[1759289582020,0.43404,4146.0,4145.9,0.87055]
[1759289582228,0.90644,4146.0,4145.9,1.19445]
[1759289582618,1.24554,4146.0,4145.9,0.7604]
[1759289582927,1.46504,4146.0,4145.9,0.7604]
[1759289584414,1.031,4146.0,4145.9,0.7604]
[1759289585328,0.785,4146.0,4145.9,0.7604]
[1759289585520,1.031,4146.0,4145.9,0.7604]
[1759289587122,0.4724,4146.0,4145.9,0.7604]
[1759289588024,0.8115,4146.0,4145.9,0.7604]
[1759289589723,1.031,4146.0,4145.9,0.7604]
[1759289590025,1.1646,4146.0,4145.9,0.7604]
[1759289590224,1.031,4146.0,4145.9,0.7604]
[1759289591526,1.46504,4146.0,4145.9,0.7604]
[1759289592125,1.21907,4145.7,4145.6,0.5318]
[1759289592425,0.785,4145.7,4145.6,1.19447]
[1759289592827,1.21907,4145.7,4145.6,1.19447]
[1759289593526,1.46507,4145.7,4145.6,1.19447]
[1759289593733,1.46507,4145.7,4145.6,0.96587]
[1759289593932,0.2195,4145.5,4145.4,0.4341]
[1759289594126,0.9186,4145.5,4145.4,0.9659]
[1759289594623,0.785,4145.5,4145.4,1.1945]
[1759289595818,1.21909,4145.5,4145.4,1.1945]
[1759289596230,1.21909,4145.5,4145.4,2.06385045]
[1759289596430,0.785,4145.5,4145.4,2.06385045]
[1759289597132,1.21909,4145.5,4145.4,1.62975045]
[1759289597325,1.21909,4145.5,4145.4,2.06385045]
[1759289597525,0.785,4145.5,4145.4,2.06385045]
[1759289599931,1.21909,4145.5,4145.4,1.62975045]
[1759289600934,1.21909,4145.5,4145.4,2.06385045]
[1759289602735,1.21909,4145.5,4145.4,1.62975045]
[1759289602930,0.785,4145.5,4145.4,2.06385045]
[1759289603131,0.66049,4145.5,4145.4,1.62975045]
[1759289603335,0.97829,4145.5,4145.4,1.62975045]
[1759289603639,1.19869,4145.5,4145.4,2.06385045]
[1759289604239,1.19869,4145.5,4145.4,1.62975045]
[1759289604739,1.19869,4145.5,4145.4,2.06385045]
[1759289606337,0.7646,4145.5,4145.4,2.06385045]
[1759289606537,0.2264,4145.5,4145.4,2.06385045]
[1759289606732,0.89427,4145.7,4145.6,1.21078]
[1759289606932,1.21207,4145.7,4145.6,1.21078]
[1759289607135,1.43247,4145.7,4145.6,0.7767]
[1759289609939,0.9984,4145.7,4145.6,0.7767]
[1759289614041,0.777,4146.0,4145.9,0.7767]
[1759289614343,0.777,4146.0,4145.9,2.08010045]
[1759289614344,0.532,4146.0,4145.9,2.08010045]
[1759289614545,0.2142,4146.0,4145.9,2.08010045]
[1759289614746,0.777,4146.2,4146.1,0.441]
[1759289614946,0.777,4146.2,4146.1,0.7767]
[1759289615242,0.9974,4146.2,4146.1,0.7767]
[1759289616953,0.7524,4146.2,4146.1,0.7767]
[1759289617148,0.9974,4146.2,4146.1,0.7767]
[1759289618232,1.43142,4146.2,4146.1,0.7767]
[1759289618849,1.43142,4146.2,4146.1,0.5538]
[1759289620050,0.7524,4145.8,4145.7,0.98787]
[1759289620348,0.9974,4145.8,4145.7,1.21077]
[1759289621240,1.43146,4145.8,4145.7,1.21077]
[1759289622850,1.43146,4145.8,4145.7,0.7767]
[1759289623346,0.245,4145.9,4145.8,0.3357]
[1759289623548,0.245,4145.9,4145.8,0.7767]
[1759289623847,0.67905,4145.9,4145.8,1.21076]
[1759289625252,0.245,4145.9,4145.8,1.21076]
[1759289625446,0.89325,4145.9,4145.8,1.21076]
[1759289626753,1.43145,4145.9,4145.8,0.7767]
[1759289627853,1.43145,4145.9,4145.8,0.5538]
[1759289629247,0.2142,4145.5,4145.4,1.52155045]
[1759289629454,1.18649,4145.5,4145.4,2.08015045]
[1759289630151,1.18649,4145.5,4145.4,1.64605045]
[1759289632847,1.18649,4145.5,4145.4,2.08015045]
[1759289634255,1.18649,4145.5,4145.4,1.64605045]
[1759289635748,1.18649,4145.5,4145.4,2.08015045]
[1759289635955,0.2197,4145.7,4145.6,0.2249]
[1759289636155,0.5384,4145.7,4145.6,0.4531]
[1759289636854,0.97247,4145.7,4145.6,1.22998]
[1759289637355,0.97247,4145.7,4145.6,0.7959]
[1759289637853,0.65377,4145.7,4145.6,0.7959]
[1759289638042,0.97247,4145.7,4145.6,1.22998]
[1759289638549,0.97247,4145.7,4145.6,0.7959]
[1759289638945,0.97247,4145.7,4145.6,1.22998]
[1759289639553,0.97247,4145.7,4145.6,0.7959]
[1759289640250,0.245,4145.8,4145.7,0.77687]
[1759289640556,0.245,4145.8,4145.7,2.09932045]
[1759289641260,0.67907,4145.8,4145.7,2.09932045]
[1759289642145,0.3187,4146.4,4146.0,0.5846]
[1759289642349,1.18278,4146.6,4146.5,0.9274]
[1759289642551,1.18278,4146.6,4146.5,1.79675045]
[1759289642750,0.7488,4146.6,4146.5,2.23074045]
[1759289642952,0.97236,4146.8,4146.7,1.22986]
[1759289643154,1.21736,4146.8,4146.7,2.09921045]
[1759289643755,0.5384,4147.0,4146.9,0.88704]
[1759289643956,4.38e-06,4147.1,4147.0,0.1315]
[1759289644156,4.38e-06,4147.1,4147.0,1.00085045]
[1759289646859,0.74880438,4147.1,4147.0,1.45395045]
[1759289647356,0.74880438,4147.1,4147.0,1.79675045]
[1759289647862,0.7488,4146.7,4146.6,0.86935045]
[1759289648066,0.9938,4146.7,4146.6,0.86935045]
[1759289648658,0.9938,4146.7,4146.6,1.09425045]
[1759289648858,0.5575,4146.5,4146.3,1.30335045]
[1759289649161,0.7488,4146.4,4146.3,1.87105045]
[1759289649553,0.7488,4146.4,4146.3,2.09925045]
[1759289651353,0.5384,4146.4,4146.3,2.09925045]
[1759289651554,0.2197,4147.0,4146.9,1.22984]
[1759289651764,4.38e-06,4147.1,4147.0,0.1315]
[1759289652764,0.43010438,4147.1,4147.0,0.3428]
[1759289652959,0.74880438,4147.1,4147.0,0.5677]
[1759289656267,0.74880438,4147.1,4147.0,0.7959]
[1759289658556,0.74880438,4147.1,4147.0,1.22983]
[1759289658763,4.38e-06,4147.1,4147.0,1.01743]
[1759289674179,0.55670438,4147.1,4147.0,1.33523]
[1759289674778,0.99062438,4147.1,4147.0,0.9013]
[1759289674980,1.21302438,4147.1,4147.0,0.7709]
[1759289675571,1.21302438,4147.1,4147.0,0.3178]
[1759289675883,1.21304,4146.9,4146.8,0.5314]
[1759289676681,1.21304,4146.9,4146.8,1.19285]
[1759289677380,1.21304,4146.9,4146.8,0.7589]
[1759289678977,0.43397,4146.7,4146.5,1.32300443]
[1759289679285,0.1261,4147.0,4146.5,2.33448443]
[1759289679286,0.7791,4146.6,4146.5,2.33448443]
[1759289679483,0.2163,4146.6,4146.5,2.33448443]
[1759289679680,0.99062438,4147.1,4147.0,1.32923]
[1759289680483,1.21302438,4147.1,4147.0,1.32923]
[1759289681287,4.38e-06,4147.1,4147.0,1.01143]
[1759289682980,0.21630438,4147.1,4147.0,1.32923]
[1759289683586,4.38e-06,4147.1,4147.0,1.32923]
[1759289683784,4.38e-06,4147.1,4147.0,1.01143]
[1759289685590,0.77910438,4147.1,4147.0,1.19283]
[1759289686182,1.21302438,4147.1,4147.0,0.7589]
[1759289686481,0.77910438,4147.1,4147.0,1.19283]
[1759289687192,0.77910438,4147.1,4147.0,1.32923]
[1759289687394,4.38e-06,4147.1,4147.0,1.01143]
[1759289692197,4.38e-06,4147.1,4147.0,2.66631479]
[1759289692392,4.38e-06,4147.1,4147.0,7.01663443]
[1759289692694,4.38e-06,4147.1,4147.0,8.02183886]
[1759289692894,4.38e-06,4147.1,4147.0,7.01663443]
[1759289693300,4.38e-06,4147.1,4147.0,8.02183886]
[1759289694188,4.38e-06,4147.1,4147.0,9.32230264]
[1759289694387,4.38e-06,4147.1,4147.0,8.02183886]
[1759289694990,4.38e-06,4147.1,4147.0,9.92742043]
[1759289701101,4.38e-06,4147.1,4147.0,47.54942043]
[1759289702003,0.5502,4149.2,4149.1,0.436]
[1759289702199,0.2094,4149.2,4149.1,1.44120443]
[1759289702403,0.2094,4149.2,4149.1,1.77720443]
[1759289703005,0.21166389,4149.2,4149.1,1.7797089]
[1759289703597,0.55246389,4149.2,4149.1,1.7797089]
[1759289703799,0.77926389,4149.2,4149.1,1.7797089]
[1759289708108,0.21166389,4149.2,4149.1,1.7797089]
[1759289709006,0.00226389,4149.2,4149.1,1.7797089]
[1759289710000,0.00226389,4149.2,4149.1,1.20821447]
[1759289718108,0.76266389,4149.2,4149.1,0.77450447]
[1759289718303,0.76266389,4149.2,4149.1,2.07594649]
[1759289719607,1.19636389,4149.2,4149.1,2.07594649]
[1759289720408,0.76266389,4149.2,4149.1,2.07594649]
[1759289722115,1.19636389,4149.2,4149.1,2.07594649]
[1759289722413,1.19636389,4149.2,4149.1,1.64223649]
[1759289722913,1.19636389,4149.2,4149.1,2.07594649]
[1759289723317,6.19636389,4149.2,4149.1,0.00250447]
[1759289725207,5.76266389,4149.2,4149.1,0.99491447]
[1759289725515,1.19066389,4149.2,4149.1,1.20501447]
[1759289725820,0.75696389,4149.2,4149.1,1.20501447]
[1759289726013,1.19066389,4149.2,4149.1,0.77130447]
[1759289726203,1.19066389,4149.2,4149.1,1.20501447]
[1759289726718,0.75696389,4149.2,4149.1,1.20501447]
[1759289728114,0.21166389,4149.2,4149.1,1.20501447]
[1759289728511,0.00226389,4149.2,4149.1,1.20501447]
[1759289729213,0.00226389,4149.2,4149.1,1.85338823]
[1759289730507,0.331,4149.8,4149.7,0.43365]
[1759289730811,0.2227,4149.8,4149.7,1.20245]
[1759289731818,0.55664499,4149.8,4149.7,1.20245]
[1759289732612,0.22564499,4149.8,4149.7,1.20245]
[1759289733012,0.55664499,4149.8,4149.7,1.20245]
[1759289733214,0.00294499,4149.8,4149.7,1.20245]
[1759289735120,0.22564499,4149.8,4149.7,1.20245]
[1759289736619,0.55664499,4149.8,4149.7,1.20245]
[1759289737118,0.00294499,4149.8,4149.7,1.20245]
[1759289739323,0.00294499,4149.8,4149.7,1.85082376]
[1759289740219,0.00294499,4149.8,4149.7,1.20245]
[1759289741120,0.00294499,4149.8,4149.7,1.44745]
[1759289741826,0.00294499,4149.8,4149.7,2.09582376]
[1759289742926,0.00294499,4149.8,4149.7,2.09620567]
[1759289743230,0.00294499,4149.8,4149.7,2.0960555]
[1759289743426,0.2603,4151.0,4150.9,0.43352]
[1759289743427,0.331,4151.0,4150.9,0.43352]
[1759289743633,0.437,4151.3,4151.2,0.87319]
[1759289743826,0.768,4151.3,4151.2,1.20229]
[1759289744220,0.768,4151.3,4151.2,2.07002202]
[1759289744534,0.7705899,4151.3,4151.2,2.07002202]
[1759289744728,0.7705899,4151.3,4151.2,1.63653202]
[1759289745132,0.437,4151.0,4150.9,0.5587]
[1759289745430,0.8956,4151.0,4150.9,1.42643202]
[1759289746025,0.768,4150.6,4150.5,0.99227]
[1759289746227,5.56112,4151.0,4150.5,0.99227]
[1759289746228,0.2227,4150.9,4150.8,0.43353]
[1759289746429,0.768,4150.9,4150.8,0.4397]
[1759289746930,0.768,4150.9,4150.8,0.7688]
[1759289747132,0.768,4150.9,4150.8,1.63653202]
[1759289750627,0.768,4150.9,4150.8,2.07006202]
[1759289753937,0.2283,4151.2,4151.1,1.1925]
[1759289754139,0.2283,4151.2,4151.1,2.06023202]
[1759289755539,0.5576,4151.2,4151.1,2.06023202]
[1759289755838,0.99109,4151.2,4151.1,2.06023202]
[1759289756736,1.21569,4151.2,4151.1,2.06023202]
[1759289757644,0.7822,4151.2,4151.1,2.06023202]
[1759289758141,1.21569,4151.2,4151.1,2.06023202]
[1759289758738,1.21569,4151.2,4151.1,0.759]
[1759289758943,1.21569,4151.2,4150.5,0.1278]
[1759289758944,1.21573,4150.9,4150.8,0.96463]
[1759289759241,1.21573,4150.9,4150.0,0.64856556]
[1759289759431,0.7822,4150.0,4149.9,0.759]
[1759289759635,0.4529,4150.0,4149.9,0.759]
[1759289759841,0.7822,4150.3,4150.2,1.1926]
[1759289760435,0.4529,4150.3,4150.2,2.06033202]
[1759289760640,0.3293,4150.9,4150.8,0.43353]
[1759289760945,0.5576,4150.9,4150.8,2.06026202]
[1759289762239,0.2283,4151.1,4151.0,0.43351]
[1759289762437,0.5576,4151.1,4151.0,0.5745]
[1759289762637,0.7822,4151.1,4151.0,0.4367]
[1759289763043,0.7822,4151.1,4151.0,0.759]
[1759289765943,0.7822,4150.9,4150.8,1.07653202]
[1759289766151,0.7822,4150.9,4150.8,1.39883202]
[1759289767350,1.21573,4150.9,4150.8,2.06026202]
[1759289767547,0.7822,4150.9,4150.8,2.06026202]
[1759289769543,1.21572,4150.9,4150.8,2.06026202]
[1759289770550,1.21572,4150.9,4150.2,1.08398]
[1759289770551,1.0839,4150.6,4150.0,0.86449834]
[1759289770844,0.4336,4150.2,4150.1,0.3223]
[1759289771050,41.4786,4150.2,4150.1,0.3223]
[1759289771448,41.4786,4150.2,4150.0,0.1378]
[1759289772648,41.4786,4150.2,4150.0,0.4601]
[1759289775450,41.4786,4150.2,4149.5,1.00553202]
[1759289775451,0.43366,4149.6,4149.5,0.6689]
[1759289776145,0.43366,4149.6,4149.5,0.8968]
[1759289776841,0.43366,4149.6,4149.5,1.76453202]
[1759289778349,0.43366,4149.6,4149.5,0.8968]
[1759289786057,0.43366,4149.6,4149.5,1.33047]
[1759289786358,0.43366,4149.6,4149.5,2.33453997]
[1759289786660,0.43362,4150.0,4149.9,0.86532]
[1759289786847,1.08381,4151.0,4150.8,0.2099]
[1759289787049,41.47752,4150.9,4150.8,0.5497]
[1759289793762,41.47752,4150.9,4150.8,0.3398]
[1759289796063,0.43361,4150.1,4150.0,0.8982]
[1759289796259,0.67761,4150.1,4150.0,0.8982]
[1759289798563,0.67761,4150.1,4150.0,1.33182]
[1759289799270,0.67761,4150.1,4150.0,0.8982]
[1759289800265,0.67761,4150.1,4150.0,1.33182]
[1759289802570,0.67761,4150.1,4150.0,0.8982]
[1759289803657,0.67761,4150.1,4150.0,1.33182]
[1759289803969,40.8,4150.3,4150.2,0.8653]
[1759289804166,0.244,4150.4,4150.3,0.3398]
[1759289804371,0.244,4150.4,4150.3,1.20509]
[1759289804667,0.67758,4150.4,4150.3,0.7715]
[1759289808669,0.67758,4150.4,4150.3,0.5497]
[1759289809564,0.67758,4150.4,4150.3,0.3398]
[1759289810176,0.67758,4150.4,4150.3,0.5497]
[1759289811064,41.47758,4150.4,4150.3,0.3398]
[1759289811269,46.47758,4150.4,4150.3,0.3398]
[1759289812671,41.47758,4150.4,4150.3,0.3398]
[1759289812874,41.47758,4150.4,4150.3,0.5497]
[1759289813174,41.47758,4150.4,4150.3,0.7715]
[1759289815175,41.47758,4150.4,4150.3,0.3398]
[1759289817075,41.47758,4150.4,4150.3,0.7846]
[1759289820484,41.47758,4150.4,4150.3,0.5546]
[1759289821379,41.47758,4150.4,4150.3,0.3398]
[1759289823783,41.47758,4150.4,4149.5,0.6966]
[1759289823784,0.43366,4149.6,4149.5,0.6966]
[1759289824080,0.67766,4149.6,4149.5,0.4818]
[1759289824878,0.439,4149.2,4149.1,0.00250447]
[1759289825079,0.65541,4148.2,4148.1,0.4448]
[1759289825282,1.08443,4148.6,4148.3,0.43379]
[1759289825283,0.3122,4148.6,4148.3,0.43379]
[1759289825480,0.65529,4149.3,4149.2,0.4448]
[1759289825687,0.244,4149.3,4149.2,1.44886997]
[1759289826179,0.68541897,4149.3,4149.2,0.44709591]
[1759289826383,0.99761897,4149.3,4149.2,0.00229591]
[1759289827280,2.00168894,4149.3,4149.2,0.00229591]
[1759289829290,0.99761897,4149.3,4149.2,0.56109591]
[1759289829787,0.99761897,4149.3,4149.2,0.00229591]
[1759289834184,0.99761897,4149.3,4148.2,0.4338]
[1759289834386,0.43391,4147.2,4147.1,0.2148]
[1759289834690,0.43397,4146.6,4146.5,0.1242]
[1759289834994,0.87297,4146.6,4146.5,0.913]
[1759289835292,0.87297,4146.6,4146.5,0.91472912]
[1759289835491,1.18517,4146.6,4146.5,0.79052912]
[1759289835693,0.247,4146.6,4146.5,0.57072912]
[1759289835996,0.247,4146.6,4146.5,0.91472912]
[1759289836196,0.4686,4146.6,4146.5,0.91472912]
[1759289837194,40.8,4146.9,4146.5,0.91472912]
[1759289837195,41.047,4146.9,4146.6,0.344]
[1759289837494,41.047,4146.9,4146.8,0.7888]
[1759289837896,0.247,4146.9,4146.8,0.7888]
[1759289838192,0.4686,4146.9,4146.8,0.7888]
[1759289844094,1.0054,4146.9,4146.8,0.7888]
[1759289845598,1.0054,4146.9,4146.8,0.5588]
[1759289846097,1.0054,4146.9,4146.8,0.344]
[1759289846296,0.436,4146.6,4146.5,0.35572912]
[1759289846495,1.001,4146.6,4146.5,0.35572912]
[1759289846695,1.43497,4146.6,4146.5,0.35572912]
[1759289846900,1.43497,4146.6,4146.5,0.68202912]
[1759289847288,1.43497,4146.6,4146.5,0.90152912]
[1759289848399,1.43497,4146.6,4146.5,0.55782912]
[1759289849895,1.43497,4146.6,4146.5,0.77732912]
[1759289850102,1.43497,4146.6,4146.5,0.90802912]
[1759289850492,0.86997,4146.6,4146.5,0.90802912]
[1759289850693,0.89817,4146.6,4146.5,1.34200912]
[1759289850894,0.43396,4146.8,4146.7,1.20956]
[1759289851094,0.68096,4146.8,4146.7,2.07838112]
[1759289853204,0.65111,4147.2,4147.0,0.1307]
[1759289853502,41.047,4147.3,4147.2,0.7756]
[1759289853706,1.0845,4148.3,4147.5,0.1307]
[1759289853903,1.0845,4148.3,4147.6,0.7756]
[1759289853904,0.2172,4147.7,4147.6,0.7756]
[1759289854207,41.2642,4147.7,4147.6,0.7756]
[1759289854397,41.0172,4147.7,4147.6,0.7756]
[1759289854600,41.2642,4147.7,4147.6,0.7756]
[1759289854900,0.4642,4147.7,4147.6,0.7756]
[1759289856007,1.001,4147.7,4147.6,0.7756]
[1759289856300,0.754,4147.1,4147.0,1.34023]
[1759289856501,0.247,4147.3,4147.2,0.43391]
[1759289856702,0.247,4147.3,4147.2,0.88321]
[1759289856703,0.4642,4147.3,4147.2,0.88321]
[1759289856907,0.4642,4147.3,4147.2,1.20951]
[1759289858508,0.247,4147.3,4147.2,2.07833112]
[1759289858697,0.2172,4147.5,4147.4,1.20948]
[1759289858901,0.65106,4147.7,4147.6,0.7756]
[1759289859206,1.11686,4147.7,4147.6,0.7756]
[1759289859405,1.43486,4147.7,4147.6,0.7756]
[1759289859702,1.43486,4147.7,4147.6,0.5561]
[1759289860607,1.43486,4147.7,4147.6,0.7756]
[1759289861106,1.18786,4147.7,4147.6,0.7756]
[1759289861304,1.43486,4147.7,4147.6,0.7756]
[1759289862002,1.43486,4147.7,4147.6,1.20947]
[1759289862202,0.683,4147.7,4147.6,1.20947]
[1759289862512,1.11686,4147.7,4147.6,1.20947]
[1759289864107,1.11686,4147.7,4147.6,0.7756]
[1759289864509,1.11686,4147.7,4147.6,1.20947]
[1759289865307,0.4632,4147.7,4147.6,1.20947]
[1759289866412,0.89706,4147.7,4147.6,1.20947]
[1759289866707,0.4632,4147.7,4147.6,1.20947]
[1759289866907,41.45104,4148.0,4147.9,0.88314]
[1759289867110,41.45104,4148.0,4147.9,1.20944]
[1759289867111,41.69704,4148.0,4147.9,1.20944]
[1759289867309,41.91584,4148.0,4147.9,1.20944]
[1759289867509,42.23384,4148.0,4147.9,0.7756]
[1759289867709,41.91584,4148.0,4147.9,0.7756]
[1759289868007,41.91584,4148.0,4147.9,1.20944]
[1759289868204,42.23384,4148.0,4147.9,1.20944]
[1759289868404,41.66984,4148.0,4147.9,1.20944]
[1759289868606,41.69704,4148.0,4147.9,1.20944]
[1759289868810,41.69703,4148.0,4147.9,1.20944]
[1759289869009,0.89703,4148.0,4147.9,1.20944]
[1759289873506,0.89703,4148.0,4147.9,0.7756]
[1759289873812,1.45933,4148.0,4147.9,0.7756]
[1759289874014,1.45933,4148.0,4147.9,0.5561]
[1759289874713,1.45933,4148.0,4147.9,1.21954]
[1759289875811,1.45933,4148.0,4147.9,0.7857]
[1759289876017,1.45933,4148.0,4147.9,0.3263]
[1759289876811,0.2184,4147.4,4147.3,0.4339]
[1759289877016,1.46889,4147.4,4147.3,0.7635]
[1759289877318,1.46889,4147.4,4147.3,0.973]
[1759289877518,1.46889,4147.4,4147.3,0.5391]
[1759289877721,1.46889,4147.4,4147.3,0.973]
[1759289877919,1.46889,4147.4,4147.3,1.2026]
[1759289880034,1.46889,4147.4,4147.3,0.7687]
[1759289880423,0.43392,4147.1,4147.0,0.1307]
[1759289880619,1.22293,4147.0,4146.9,0.2095]
[1759289881025,1.22293,4147.0,4146.9,0.5391]
[1759289881830,1.22293,4147.0,4146.9,0.7687]
[1759289882131,0.87943,4147.0,4146.9,0.7687]
[1759289882331,1.22293,4147.0,4146.9,0.7687]